[Event "VII Cape Verde Championship 2023"]
[Site "Ponta do Sol"]
[Date "2023.12.10"]
[Round "9.2"]
[White "Silva, Bryan Jorge"]
[Black "Mirulla, David"]
[Result "1/2-1/2"]
[ECO "C47"]
[WhiteElo "1586"]
[BlackElo "1929"]
[Annotator "ChessBase"]
[PlyCount "60"]
[EventDate "2023.11.30"]
[EventType "tourn"]
[EventCountry "KAP"]
[SourceTitle "playchess.com"]
[Source "ChessBase"]
[SourceQuality "1"]
[TimeControl "40/5400+30:1800+30"]

1. e4 {[%emt 0:00:04]} e5 {[%emt 0:00:11]} 2. Nf3 {[%emt 0:00:16]} Nc6 {[%emt 0:00:06]} 3. Nc3 {[%emt 0:00:10]} Nf6 {[%emt 0:00:15]} 4. d4 {[%emt 0:00:16]} exd4 {[%emt 0:09:54]} 5. Nxd4 {[%emt 0:00:22]} Bb4 {[%emt 0:16:32]} 6. Nxc6 {[%emt 0:01:01]} dxc6 {[%emt 0:00:57]} 7. Qxd8+ {[%emt 0:01:28]} Kxd8 {[%emt 0:00:10]} 8. Bg5 {[%emt 0:00:33]} h6 {[%emt 0:00:45]} 9. Bxf6+ {[%emt 0:08:48]} gxf6 {[%emt 0:00:30]} 10. O-O-O+ {[%emt 0:00:30]} Ke7 {[%emt 0:00:30]} 11. Ne2 {[%emt 0:00:30]} Bc5 {[%emt 0:00:30]} 12. f3 {[%emt 0:00:30]} f5 {[%emt 0:00:30]} 13. Ng3 {[%emt 0:00:30]} f4 {[%emt 0:00:30]} 14. Ne2 {[%emt 0:00:30]} f5 {[%emt 0:00:30]} 15. Nc3 {[%emt 0:00:30]} Rg8 {[%emt 0:00:30]} 16. Kb1 {[%emt 0:00:30]} Bb4 {[%emt 0:00:30]} 17. Ne2 {[%emt 0:00:30]} Bd6 {[%emt 0:00:30]} 18. exf5 {[%emt 0:00:30]} Bxf5 {[%emt 0:00:30]} 19. g3 {[%emt 0:00:30]} Raf8 {[%emt 0:00:30]} 20. gxf4 {[%emt 0:00:30]} Be6 {[%emt 0:00:30]} 21. Nd4 {[%emt 0:00:30]} Bd7 {[%emt 0:00:30]} 22. Bd3 {[%emt 0:00:30]} c5 {[%emt 0:00:30]} 23. Nf5+ {[%emt 0:00:30]} Bxf5 {[%emt 0:00:30]} 24. Bxf5 {[%emt 0:00:30]} Kf6 {[%emt 0:00:30]} 25. Rhe1 {[%emt 0:00:30]} Re8 {[%emt 0:00:30]} 26. h4 {[%emt 0:00:30]} Re3 {[%emt 0:00:30]} 27. Be4 {[%emt 0:00:30]} b6 {[%emt 0:00:30]} 28. c3 {[%emt 0:00:30]} Re8 {[%emt 0:00:30]} 29. Kc2 {[%emt 0:00:30]} Rxe1 {[%emt 0:00:30]} 30. Rxe1 {[%emt 0:00:30]} Re5 {[%emt 0:00:30]} 1/2-1/2

[Event "VII Cape Verde Championship 2023"]
[Site "Ponta do Sol"]
[Date "2023.12.10"]
[Round "9.3"]
[White "Monteiro, Antonio David Cabral"]
[Black "Barros, Luis"]
[Result "0-1"]
[ECO "A80"]
[WhiteElo "1801"]
[BlackElo "1656"]
[Annotator "NA"]
[PlyCount "28"]
[EventDate "2023.11.30"]
[EventType "tourn"]
[EventCountry "KAP"]
[SourceTitle "playchess.com"]
[Source "ChessBase"]
[SourceQuality "1"]
[TimeControl "40/5400+30:1800+30"]

1. d4 {[%emt 0:00:04]} f5 {[%emt 0:01:36]} 2. Bf4 {[%emt 0:02:10]} d6 {[%emt 0:01:21]} 3. d5 {[%emt 0:02:51]} e6 {[%emt 0:02:03]} 4. Nc3 {[%emt 0:03:43]} e5 {[%emt 0:00:30]} 5. Bd2 {[%emt 0:01:02]} Nf6 {[%emt 0:00:58]} 6. f3 {[%emt 0:04:06]} Nh5 {[%emt 0:03:26]} 7. Be3 {[%emt 0:01:22]} Qh4+ {[%emt 0:05:13]} 8. Bf2 {[%emt 0:02:25]} Qb4 {[%emt 0:00:47]} 9. Qc1 {[%emt 0:07:17]} c5 {[%emt 0:00:30]} 10. a3 {[%emt 0:00:30]} Qb6 {[%emt 0:00:30]} 11. e4 {[%emt 0:00:30]} a6 {[%emt 0:00:30]} 12. exf5 {[%emt 0:00:30]} Be7 {[%emt 0:06:24]} 13. Nh3 {[%emt 0:09:00]} Qd8 {[%emt 0:03:28]} 14. Bd3 {[%emt 0:01:54]} b5 {[%emt 0:01:12]} 0-1

[Event "VII Cape Verde Championship 2023"]
[Site "Ponta do Sol"]
[Date "2023.12.10"]
[Round "9.4"]
[White "Teixeira, Gil"]
[Black "Santos, Kelim Morais"]
[Result "1-0"]
[ECO "C58"]
[WhiteElo "1820"]
[BlackElo "1436"]
[Annotator "NA"]
[PlyCount "93"]
[EventDate "2023.11.30"]
[EventType "tourn"]
[EventCountry "KAP"]
[SourceTitle "playchess.com"]
[Source "ChessBase"]
[SourceQuality "1"]
[TimeControl "40/5400+30:1800+30"]

1. e4 {[%emt 0:00:10]} e5 {[%emt 0:17:55]} 2. Bc4 {[%emt 0:00:26]} Nc6 {[%emt 0:00:36]} 3. Nf3 {[%emt 0:00:28]} Nf6 {[%emt 0:00:26]} 4. Ng5 {[%emt 0:00:43]} d5 {[%emt 0:00:24]} 5. exd5 {[%emt 0:01:31]} Na5 {[%emt 0:00:25]} 6. Bb5+ {[%emt 0:01:36]} Bd7 {[%emt 0:03:17]} 7. Qe2 {[%emt 0:00:34]} Bd6 {[%emt 0:00:52]} 8. d4 {[%emt 0:00:25]} O-O {[%emt 0:01:14]} 9. dxe5 {[%emt 0:00:42]} Re8 {[%emt 0:00:20]} 10. Nf3 {[%emt 0:01:28]} c6 11. dxc6 {[%emt 0:00:30]} Nxc6 {[%emt 0:08:07]} 12. Bxc6 {[%emt 0:00:23]} Bxc6 {[%emt 0:00:38]} 13. O-O {[%emt 0:00:04]} Bxf3 {[%emt 0:00:22]} 14. Qxf3 {[%emt 0:00:30]} Bxe5 {[%emt 0:00:30]} 15. Nc3 {[%emt 0:00:05]} Bxc3 {[%emt 0:15:48]} 16. Qxc3 {[%emt 0:00:30]} Rc8 {[%emt 0:00:30]} 17. Qb3 {[%emt 0:00:30]} Re2 {[%emt 0:00:30]} 18. c3 {[%emt 0:00:30]} Re7 {[%emt 0:00:30]} 19. Bg5 {[%emt 0:00:53]} h6 {[%emt 0:09:20]} 20. Bxf6 {[%emt 0:00:55]} gxf6 {[%emt 0:00:15]} 21. Rad1 {[%emt 0:00:21]} Qe8 {[%emt 0:01:18]} 22. Rd4 {[%emt 0:00:30]} f5 {[%emt 0:00:30]} 23. Qd1 {[%emt 0:00:30]} Re6 {[%emt 0:00:30]} 24. Qf3 {[%emt 0:00:30]} Qb5 {[%emt 0:00:30]} 25. Rb4 {[%emt 0:00:30]} Qc6 {[%emt 0:00:30]} 26. Qxf5 {[%emt 0:00:30]} Rf6 {[%emt 0:00:30]} 27. Qe4 {[%emt 0:00:30]} b6 {[%emt 0:00:30]} 28. Qxc6 {[%emt 0:00:30]} Rcxc6 {[%emt 0:00:30]} 29. Rd4 {[%emt 0:00:30]} Rfe6 {[%emt 0:00:30]} 30. Rd2 {[%emt 0:00:30]} Kg7 {[%emt 0:00:30]} 31. g3 {[%emt 0:00:30]} Re5 {[%emt 0:00:30]} 32. Kg2 {[%emt 0:09:25]} a5 {[%emt 0:25:34]} 33. Rfd1 {[%emt 0:00:30]} Rce6 {[%emt 0:00:30]} 34. Rd6 {[%emt 0:00:30]} b5 {[%emt 0:00:30]} 35. Rxe6 {[%emt 0:00:30]} fxe6 {[%emt 0:00:30]} 36. Rd2 {[%emt 0:00:23]} Kf6 {[%emt 0:00:48]} 37. f4 {[%emt 0:00:30]} Re1 {[%emt 0:00:30]} 38. Kf2 {[%emt 0:01:30]} Rh1 {[%emt 0:05:34]} 39. Kf3 {[%emt 0:00:33]} Re1 {[%emt 0:01:05]} 40. Re2 {[%emt 0:00:30]} Rd1 {[%emt 0:00:30]} 41. Kg4 {[%emt 0:30:30]} Rd5 {[%emt 0:30:30]} 42. Kf3 {[%emt 0:00:18]} h5 {[%emt 0:01:18]} 43. Ke4 {[%emt 0:00:30]} Rd1 {[%emt 0:00:30]} 44. Ke3 {[%emt 0:00:30]} Rd5 {[%emt 0:00:30]} 45. Rd2 {[%emt 0:00:30]} Kf5 {[%emt 0:00:30]} 46. Rxd5+ {[%emt 0:00:30]} exd5 {[%emt 0:00:30]} 47. Kd4 {[%emt 0:00:30]} 1-0

[Event "VII Cape Verde Championship 2023"]
[Site "Ponta do Sol"]
[Date "2023.12.10"]
[Round "9.5"]
[White "Vaz, Jose Carlos"]
[Black "Rodriguez Guevara, Celia M."]
[Result "1-0"]
[ECO "B11"]
[WhiteElo "1833"]
[BlackElo "1746"]
[Annotator "NA"]
[PlyCount "81"]
[EventDate "2023.11.30"]
[EventType "tourn"]
[EventCountry "KAP"]
[SourceTitle "playchess.com"]
[Source "ChessBase"]
[SourceQuality "1"]
[TimeControl "40/5400+30:1800+30"]

1. e4 {[%emt 0:01:10]} c6 {[%emt 0:00:50]} 2. Nf3 {[%emt 0:01:59]} d5 {[%emt 0:00:36]} 3. Nc3 {[%emt 0:03:16]} d4 {[%emt 0:09:06]} 4. Ne2 {[%emt 0:00:30]} c5 {[%emt 0:00:13]} 5. b4 {[%emt 0:00:45]} e6 {[%emt 0:02:38]} 6. Bb2 {[%emt 0:01:01]} b6 {[%emt 0:02:44]} 7. Ng3 {[%emt 0:00:29]} Ne7 {[%emt 0:03:48]} 8. h4 {[%emt 0:01:57]} h5 {[%emt 0:09:38]} 9. Bb5+ {[%emt 0:03:47]} Bd7 {[%emt 0:00:12]} 10. Bxd7+ {[%emt 0:00:17]} Nxd7 {[%emt 0:00:03]} 11. Ng5 {[%emt 0:09:48]} Nf6 {[%emt 0:08:13]} 12. Qe2 {[%emt 0:01:31]} Ng6 {[%emt 0:03:42]} 13. e5 {[%emt 0:07:21]} Ng4 {[%emt 0:03:52]} 14. f4 {[%emt 0:04:02]} Nh6 {[%emt 0:08:43]} 15. f5 {[%emt 0:06:29]} Nxh4 {[%emt 0:03:20]} 16. Qb5+ {[%emt 0:00:51]} Qd7 {[%emt 0:02:09]} 17. Qxd7+ {[%emt 0:00:48]} Kxd7 {[%emt 0:00:01]} 18. Rxh4 {[%emt 0:00:37]} Be7 {[%emt 0:00:13]} 19. fxe6+ {[%emt 0:00:30]} fxe6 {[%emt 0:00:19]} 20. Rxh5 {[%emt 0:00:22]} g6 {[%emt 0:00:35]} 21. Rh3 {[%emt 0:02:11]} Bxg5 {[%emt 0:00:03]} 22. O-O-O {[%emt 0:00:32]} Ng4 {[%emt 0:01:04]} 23. Ne4 {[%emt 0:00:40]} Be7 {[%emt 0:01:19]} 24. Re1 {[%emt 0:00:49]} Raf8 {[%emt 0:03:48]} 25. bxc5 {[%emt 0:00:36]} bxc5 {[%emt 0:00:21]} 26. Ra3 {[%emt 0:00:40]} Ra8 {[%emt 0:00:15]} 27. Ra5 {[%emt 0:00:10]} Rhc8 {[%emt 0:05:52]} 28. Ba3 {[%emt 0:04:03]} Nxe5 {[%emt 0:02:05]} 29. Nxc5+ {[%emt 0:00:31]} Bxc5 {[%emt 0:00:33]} 30. Rxe5 {[%emt 0:01:19]} Bb6 {[%emt 0:02:43]} 31. Ra4 {[%emt 0:00:16]} Rh8 {[%emt 0:02:31]} 32. Rg5 {[%emt 0:00:40]} Rab8 {[%emt 0:03:36]} 33. d3 {[%emt 0:00:29]} Rh1+ {[%emt 0:03:00]} 34. Kd2 {[%emt 0:00:33]} Rf8 {[%emt 0:00:11]} 35. Bxf8 {[%emt 0:00:11]} Bc7 {[%emt 0:00:17]} 36. Rxa7 {[%emt 0:00:25]} Kc6 {[%emt 0:01:03]} 37. Rxg6 {[%emt 0:00:20]} Bf4+ {[%emt 0:00:55]} 38. Ke2 {[%emt 0:00:16]} Kb6 {[%emt 0:00:32]} 39. Ra4 {[%emt 0:00:21]} Be3 {[%emt 0:00:54]} 40. Rxe6+ {[%emt 0:00:18]} Kc7 {[%emt 0:00:05]} 41. Ra7+ {[%emt 0:30:16]} 1-0